[Event "Titled Tuesday Blitz July 25 Early 2023"]
[White "Spaqi, Wilson"]
[Black "Wagner, Dennis"]
[WhiteFideId "2053888"]
[BlackFideId "24650684"]
[WhiteElo "2416"]
[BlackElo "2756"]
[Result "0-1"]
[Round "3"]
[TimeControl "180+2"]
[Date "2023.07.25"]
[WhiteClock "0:00:23"]
[BlackClock "0:00:07"]
[Board "179"]

1. d4 {[%clk 0:03:00]}  Nf6 {[%clk 0:03:00]} 2. Bf4 {[%clk 0:03:00]}  b6 {[%clk 0:02:59]} 3. e3 {[%clk 0:03:00]}  Bb7 {[%clk 0:03:00]} 4. Nf3 {[%clk 0:03:01]}  d6 {[%clk 0:03:00]} 5. c3 {[%clk 0:03:00]}  Nbd7 {[%clk 0:02:59]} 6. Nbd2 {[%clk 0:02:59]}  Nh5 {[%clk 0:02:59]} 7. Bg5 {[%clk 0:02:56]}  h6 {[%clk 0:02:59]} 8. Bh4 {[%clk 0:02:56]}  g5 {[%clk 0:03:00]} 9. Bg3 {[%clk 0:02:57]}  Bg7 {[%clk 0:02:58]} 10. Bd3 {[%clk 0:02:54]}  e6 {[%clk 0:02:52]} 11. Be4 {[%clk 0:02:53]}  d5 {[%clk 0:02:50]} 12. Bd3 {[%clk 0:02:52]}  Nxg3 {[%clk 0:02:48]} 13. hxg3 {[%clk 0:02:52]}  c5 {[%clk 0:02:49]} 14. Qe2 {[%clk 0:02:45]}  g4 {[%clk 0:02:44]} 15. Ng1 {[%clk 0:02:29]}  h5 {[%clk 0:02:22]} 16. Ba6 {[%clk 0:02:28]}  Qc8 {[%clk 0:01:56]} 17. Bxb7 {[%clk 0:02:26]}  Qxb7 {[%clk 0:01:57]} 18. f4 {[%clk 0:02:15]}  f5 {[%clk 0:01:38]} 19. Qd3 {[%clk 0:01:58]}  Kf7 {[%clk 0:01:37]} 20. Ne2 {[%clk 0:01:58]}  b5 {[%clk 0:01:31]} 21. Kf2 {[%clk 0:01:55]}  c4 {[%clk 0:01:24]} 22. Qc2 {[%clk 0:01:55]}  b4 {[%clk 0:01:23]} 23. Rh2 {[%clk 0:01:55]}  a5 {[%clk 0:01:20]} 24. Rah1 {[%clk 0:01:54]}  Nf6 {[%clk 0:01:16]} 25. Rb1 {[%clk 0:01:47]}  Rhc8 {[%clk 0:01:12]} 26. Rhh1 {[%clk 0:01:43]}  Qb5 {[%clk 0:01:08]} 27. Rhc1 {[%clk 0:01:42]}  Kg6 {[%clk 0:01:08]} 28. Rh1 {[%clk 0:01:41]}  Rab8 {[%clk 0:01:07]} 29. Rhc1 {[%clk 0:01:41]}  Bf8 {[%clk 0:01:06]} 30. Rh1 {[%clk 0:01:40]}  Bd6 {[%clk 0:01:07]} 31. Rhc1 {[%clk 0:01:40]}  Be7 {[%clk 0:01:06]} 32. Rh1 {[%clk 0:01:40]}  b3 {[%clk 0:00:58]} 33. axb3 {[%clk 0:01:34]}  cxb3 {[%clk 0:00:59]} 34. Qd1 {[%clk 0:01:30]}  a4 {[%clk 0:00:56]} 35. Ra1 {[%clk 0:01:28]}  a3 {[%clk 0:00:48]} 36. bxa3 {[%clk 0:01:29]}  b2 {[%clk 0:00:48]} 37. Rb1 {[%clk 0:01:28]}  Bxa3 {[%clk 0:00:45]} 38. Qc2 {[%clk 0:01:19]}  Rc7 {[%clk 0:00:21]} 39. Ke1 {[%clk 0:01:14]}  Ra8 {[%clk 0:00:18]} 40. Kf2 {[%clk 0:01:13]}  Raa7 {[%clk 0:00:17]} 41. Rhg1 {[%clk 0:01:11]}  Ne4+ {[%clk 0:00:16]} 42. Nxe4 {[%clk 0:01:11]}  fxe4 {[%clk 0:00:17]} 43. Rh1 {[%clk 0:01:11]}  Qd3 {[%clk 0:00:16]} 44. Qd1 {[%clk 0:00:57]}  Rcb7 {[%clk 0:00:16]} 45. Re1 {[%clk 0:00:56]}  Be7 {[%clk 0:00:16]} 46. Ng1 {[%clk 0:00:52]}  Ra2 {[%clk 0:00:14]} 47. Qxd3 {[%clk 0:00:51]}  exd3 {[%clk 0:00:14]} 48. Red1 {[%clk 0:00:52]}  Rb3 {[%clk 0:00:12]} 49. Rxd3 {[%clk 0:00:49]}  Ra1 {[%clk 0:00:12]} 50. Rdd1 {[%clk 0:00:50]}  Rba3 {[%clk 0:00:06]} 51. Ke2 {[%clk 0:00:47]}  R3a2 {[%clk 0:00:05]} 52. Kd2 {[%clk 0:00:45]}  Kf5 {[%clk 0:00:04]} 53. Kc2 {[%clk 0:00:41]}  Ke4 {[%clk 0:00:05]} 54. Ne2 {[%clk 0:00:41]}  Kxe3 {[%clk 0:00:05]} 55. Ng1 {[%clk 0:00:41]}  Kf2 {[%clk 0:00:05]} 56. Rf1+ {[%clk 0:00:39]}  Kxg2 {[%clk 0:00:05]} 57. Ne2 {[%clk 0:00:39]}  Ba3 {[%clk 0:00:05]} 58. Rh1 {[%clk 0:00:34]}  Rxb1 {[%clk 0:00:05]} 59. Rxb1 {[%clk 0:00:33]}  Ra1 {[%clk 0:00:06]} 60. f5 {[%clk 0:00:25]}  exf5 {[%clk 0:00:06]} 61. Nf4+ {[%clk 0:00:26]}  Kxg3 {[%clk 0:00:06]} 62. Nxh5+ {[%clk 0:00:26]}  Kf3 {[%clk 0:00:06]} 63. c4 {[%clk 0:00:24]}  dxc4 {[%clk 0:00:06]} 64. d5 {[%clk 0:00:23]}  g3 {[%clk 0:00:07]} 0-1


[Site "https://www.chess.com"]

[Event "Titled Tuesday Blitz July 25 Early 2023"]
[White "Bueno, Alfeu Junior Varela"]
[Black "Volovich, Vasily"]
[WhiteFideId "2108879"]
[BlackFideId "34169676"]
[WhiteElo "2406"]
[BlackElo "2721"]
[Result "0-1"]
[Round "3"]
[TimeControl "180+2"]
[Date "2023.07.25"]
[WhiteClock "0:00:01"]
[BlackClock "0:00:46"]
[Board "180"]

1. e4 {[%clk 0:02:55]}  e6 {[%clk 0:02:44]} 2. d4 {[%clk 0:02:55]}  d5 {[%clk 0:02:44]} 3. Nd2 {[%clk 0:02:55]}  c5 {[%clk 0:02:44]} 4. Ngf3 {[%clk 0:02:50]}  cxd4 {[%clk 0:02:44]} 5. exd5 {[%clk 0:02:44]}  Qxd5 {[%clk 0:02:45]} 6. Bc4 {[%clk 0:02:42]}  Qd6 {[%clk 0:02:45]} 7. O-O {[%clk 0:02:42]}  Nf6 {[%clk 0:02:45]} 8. Nb3 {[%clk 0:02:42]}  Nc6 {[%clk 0:02:45]} 9. Nbxd4 {[%clk 0:02:42]}  Nxd4 {[%clk 0:02:45]} 10. Qxd4 {[%clk 0:02:43]}  Bd7 {[%clk 0:02:45]} 11. Bf4 {[%clk 0:02:16]}  Qxd4 {[%clk 0:02:45]} 12. Nxd4 {[%clk 0:02:16]}  Rc8 {[%clk 0:02:45]} 13. Bb3 {[%clk 0:02:09]}  Bc5 {[%clk 0:02:45]} 14. Rad1 {[%clk 0:02:08]}  Ke7 {[%clk 0:02:43]} 15. Rfe1 {[%clk 0:02:06]}  Bxd4 {[%clk 0:02:36]} 16. Rxd4 {[%clk 0:02:04]}  Rhd8 {[%clk 0:02:36]} 17. Bd6+ {[%clk 0:01:43]}  Ke8 {[%clk 0:02:36]} 18. Be5 {[%clk 0:01:41]}  Bc6 {[%clk 0:02:35]} 19. Bxf6 {[%clk 0:01:36]}  gxf6 {[%clk 0:02:35]} 20. Red1 {[%clk 0:01:36]}  Rxd4 {[%clk 0:02:27]} 21. Rxd4 {[%clk 0:01:37]}  Ke7 {[%clk 0:02:28]} 22. c3 {[%clk 0:01:33]}  f5 {[%clk 0:02:28]} 23. f4 {[%clk 0:01:31]}  h5 {[%clk 0:02:25]} 24. g3 {[%clk 0:01:16]}  h4 {[%clk 0:02:24]} 25. Rd3 {[%clk 0:00:51]}  Rh8 {[%clk 0:02:18]} 26. Rd2 {[%clk 0:00:33]}  Kf6 {[%clk 0:02:10]} 27. Bd1 {[%clk 0:00:30]}  Be4 {[%clk 0:02:07]} 28. Kf2 {[%clk 0:00:25]}  hxg3+ {[%clk 0:01:57]} 29. hxg3 {[%clk 0:00:26]}  Rh2+ {[%clk 0:01:56]} 30. Ke3 {[%clk 0:00:26]}  Rh3 {[%clk 0:01:56]} 31. Kf2 {[%clk 0:00:27]}  Rh1 {[%clk 0:01:52]} 32. a3 {[%clk 0:00:22]}  Ke7 {[%clk 0:01:42]} 33. Be2 {[%clk 0:00:14]}  Rh2+ {[%clk 0:01:41]} 34. Ke3 {[%clk 0:00:14]}  Rg2 {[%clk 0:01:41]} 35. Kd4 {[%clk 0:00:07]}  Rxg3 {[%clk 0:01:40]} 36. a4 {[%clk 0:00:05]}  Rg2 {[%clk 0:01:37]} 37. Ke3 {[%clk 0:00:03]}  Bc6 {[%clk 0:01:29]} 38. Rd4 {[%clk 0:00:03]}  Rg1 {[%clk 0:01:22]} 39. Rb4 {[%clk 0:00:03]}  Kd6 {[%clk 0:01:19]} 40. a5 {[%clk 0:00:03]}  Kc5 {[%clk 0:01:18]} 41. a6 {[%clk 0:00:03]}  b5 {[%clk 0:01:17]} 42. Rd4 {[%clk 0:00:03]}  Kb6 {[%clk 0:01:13]} 43. Rd6 {[%clk 0:00:03]}  Kc7 {[%clk 0:01:07]} 44. Rd4 {[%clk 0:00:03]}  Rb1 {[%clk 0:01:06]} 45. b4 {[%clk 0:00:02]}  Ra1 {[%clk 0:01:05]} 46. c4 {[%clk 0:00:01]}  Rxa6 {[%clk 0:00:59]} 47. cxb5 {[%clk 0:00:02]}  Ra3+ {[%clk 0:00:59]} 48. Kd2 {[%clk 0:00:02]}  Bd5 {[%clk 0:00:59]} 49. Rd3 {[%clk 0:00:01]}  Rxd3+ {[%clk 0:00:53]} 50. Bxd3 {[%clk 0:00:02]}  Kd6 {[%clk 0:00:53]} 51. Kc3 {[%clk 0:00:02]}  f6 {[%clk 0:00:54]} 52. Bc2 {[%clk 0:00:01]}  Be4 {[%clk 0:00:52]} 53. Bb3 {[%clk 0:00:01]}  e5 {[%clk 0:00:52]} 54. Kd2 {[%clk 0:00:02]}  Bb7 {[%clk 0:00:46]} 55. Ke3 {[%clk 0:00:01]}  Bc8 {[%clk 0:00:46]} 0-1


[Site "https://www.chess.com"]

[Event "Titled Tuesday Blitz July 25 Early 2023"]
[White "Mejia, Cherry Ann"]
[Black "Nasuta, Grzegorz"]
[WhiteFideId "5206880"]
[BlackFideId "1141686"]
[WhiteElo "2374"]
[BlackElo "2704"]
[Result "1-0"]
[Round "3"]
[TimeControl "180+2"]
[Date "2023.07.25"]
[WhiteClock "0:01:10"]
[BlackClock "0:00:03"]
[Board "181"]

1. e4 {[%clk 0:02:55]}  c5 {[%clk 0:02:59]} 2. Nc3 {[%clk 0:02:55]}  a6 {[%clk 0:02:54]} 3. g3 {[%clk 0:02:55]}  b5 {[%clk 0:02:54]} 4. Bg2 {[%clk 0:02:55]}  Bb7 {[%clk 0:02:55]} 5. d3 {[%clk 0:02:55]}  e6 {[%clk 0:02:55]} 6. Nge2 {[%clk 0:02:55]}  d6 {[%clk 0:02:52]} 7. O-O {[%clk 0:02:54]}  Nd7 {[%clk 0:02:52]} 8. Be3 {[%clk 0:02:53]}  Ngf6 {[%clk 0:02:47]} 9. h3 {[%clk 0:02:53]}  Qc7 {[%clk 0:02:44]} 10. f4 {[%clk 0:02:51]}  Be7 {[%clk 0:02:43]} 11. g4 {[%clk 0:02:51]}  h6 {[%clk 0:02:39]} 12. Ng3 {[%clk 0:02:51]}  O-O-O {[%clk 0:02:15]} 13. g5 {[%clk 0:02:51]}  Ne8 {[%clk 0:02:06]} 14. h4 {[%clk 0:02:31]}  hxg5 {[%clk 0:02:02]} 15. hxg5 {[%clk 0:02:32]}  d5 {[%clk 0:01:55]} 16. exd5 {[%clk 0:02:28]}  b4 {[%clk 0:01:51]} 17. dxe6 {[%clk 0:02:09]}  bxc3 {[%clk 0:01:49]} 18. exd7+ {[%clk 0:02:09]}  Rxd7 {[%clk 0:01:48]} 19. bxc3 {[%clk 0:02:09]}  Bxg5 {[%clk 0:01:10]} 20. Bxb7+ {[%clk 0:01:58]}  Kxb7 {[%clk 0:01:10]} 21. Qf3+ {[%clk 0:01:57]}  Ka7 {[%clk 0:01:05]} 22. fxg5 {[%clk 0:01:55]}  Nd6 {[%clk 0:00:53]} 23. Bf4 {[%clk 0:01:52]}  Qd8 {[%clk 0:00:22]} 24. Rab1 {[%clk 0:01:50]}  Nb5 {[%clk 0:00:20]} 25. Ne4 {[%clk 0:01:44]}  Qc8 {[%clk 0:00:16]} 26. a4 {[%clk 0:01:35]}  Na3 {[%clk 0:00:14]} 27. Rb2 {[%clk 0:01:31]}  Qc6 {[%clk 0:00:12]} 28. Nxc5 {[%clk 0:01:16]}  Qxf3 {[%clk 0:00:05]} 29. Rxf3 {[%clk 0:01:16]}  Rd5 {[%clk 0:00:03]} 30. c4 {[%clk 0:01:12]}  Rxc5 {[%clk 0:00:01]} 31. Be3 {[%clk 0:01:12]}  Rc8 {[%clk 0:00:02]} 32. Rxf7+ {[%clk 0:01:12]}  Ka8 {[%clk 0:00:02]} 33. Bxc5 {[%clk 0:01:10]}  Rxc5 {[%clk 0:00:03]} 34. Rxg7 {[%clk 0:01:10]} 1-0


[Site "https://www.chess.com"]

[Event "Titled Tuesday Blitz July 25 Early 2023"]
[White "Yolosz"]
[Black "Gamayev, Oleg"]
[BlackFideId "2802813"]
[WhiteElo "2368"]
[BlackElo "2582"]
[Result "0-1"]
[Round "3"]
[TimeControl "180+2"]
[Date "2023.07.25"]
[WhiteClock "0:00:18"]
[BlackClock "0:01:48"]
[Board "182"]

1. d4 {[%clk 0:02:52]}  d6 {[%clk 0:03:00]} 2. Bf4 {[%clk 0:02:50]}  Nf6 {[%clk 0:03:01]} 3. e3 {[%clk 0:02:50]}  g6 {[%clk 0:03:01]} 4. Nc3 {[%clk 0:02:50]}  Bg7 {[%clk 0:03:02]} 5. h4 {[%clk 0:02:50]}  O-O {[%clk 0:03:03]} 6. h5 {[%clk 0:02:51]}  Nc6 {[%clk 0:03:03]} 7. hxg6 {[%clk 0:02:50]}  hxg6 {[%clk 0:03:04]} 8. Bh6 {[%clk 0:02:48]}  Bxh6 {[%clk 0:03:03]} 9. Rxh6 {[%clk 0:02:49]}  Kg7 {[%clk 0:03:04]} 10. Rh1 {[%clk 0:02:47]}  Rh8 {[%clk 0:03:04]} 11. Rxh8 {[%clk 0:02:45]}  Qxh8 {[%clk 0:03:05]} 12. Nf3 {[%clk 0:02:18]}  Bg4 {[%clk 0:03:00]} 13. Qd2 {[%clk 0:02:13]}  Bxf3 {[%clk 0:02:55]} 14. gxf3 {[%clk 0:02:12]}  e5 {[%clk 0:02:56]} 15. d5 {[%clk 0:02:09]}  Ne7 {[%clk 0:02:55]} 16. O-O-O {[%clk 0:02:09]}  Qh4 {[%clk 0:02:51]} 17. Nb5 {[%clk 0:01:58]}  Ne8 {[%clk 0:02:51]} 18. Kb1 {[%clk 0:01:37]}  a6 {[%clk 0:02:51]} 19. Nc3 {[%clk 0:01:37]}  Nf6 {[%clk 0:02:51]} 20. Bg2 {[%clk 0:01:26]}  Qb4 {[%clk 0:02:47]} 21. Rh1 {[%clk 0:01:20]}  Rh8 {[%clk 0:02:46]} 22. Rxh8 {[%clk 0:01:18]}  Kxh8 {[%clk 0:02:47]} 23. e4 {[%clk 0:01:17]}  Kg7 {[%clk 0:02:40]} 24. f4 {[%clk 0:01:16]}  exf4 {[%clk 0:02:35]} 25. Qxf4 {[%clk 0:01:17]}  Nexd5 {[%clk 0:02:33]} 26. Nxd5 {[%clk 0:01:11]}  Nxd5 {[%clk 0:02:33]} 27. Qc1 {[%clk 0:00:53]}  Nc3+ {[%clk 0:02:19]} 28. Ka1 {[%clk 0:00:53]}  Nxe4 {[%clk 0:02:20]} 29. a3 {[%clk 0:00:38]}  Qd4 {[%clk 0:02:14]} 30. Qe1 {[%clk 0:00:28]}  Nc5 {[%clk 0:02:06]} 31. Qe2 {[%clk 0:00:21]}  c6 {[%clk 0:01:58]} 32. Kb1 {[%clk 0:00:21]}  Na4 {[%clk 0:01:53]} 33. c3 {[%clk 0:00:20]}  Qxc3 {[%clk 0:01:49]} 34. Qe4 {[%clk 0:00:18]}  Qxb2# {[%clk 0:01:48]} 0-1


[Site "https://www.chess.com"]

[Event "Titled Tuesday Blitz July 25 Early 2023"]
[White "Slavin, Alexey"]
[Black "Altman, Joshua"]
[WhiteFideId "24104388"]
[BlackFideId "426210"]
[WhiteElo "2350"]
[BlackElo "2553"]
[Result "1-0"]
[Round "3"]
[TimeControl "180+2"]
[Date "2023.07.25"]
[WhiteClock "0:00:19"]
[BlackClock "0:00:07"]
[Board "184"]

1. e4 {[%clk 0:02:59]}  Nc6 {[%clk 0:02:59]} 2. Nc3 {[%clk 0:02:58]}  d6 {[%clk 0:02:58]} 3. d4 {[%clk 0:02:55]}  Nf6 {[%clk 0:02:58]} 4. Nf3 {[%clk 0:02:54]}  g6 {[%clk 0:02:58]} 5. Be3 {[%clk 0:02:53]}  Bg7 {[%clk 0:02:58]} 6. Qd2 {[%clk 0:02:53]}  Ng4 {[%clk 0:02:46]} 7. Bg5 {[%clk 0:02:53]}  h6 {[%clk 0:02:45]} 8. Bh4 {[%clk 0:02:53]}  O-O {[%clk 0:02:43]} 9. O-O-O {[%clk 0:02:49]}  a6 {[%clk 0:02:37]} 10. h3 {[%clk 0:02:41]}  Nf6 {[%clk 0:02:36]} 11. g4 {[%clk 0:02:41]}  b5 {[%clk 0:02:33]} 12. Bd3 {[%clk 0:02:38]}  b4 {[%clk 0:02:29]} 13. Ne2 {[%clk 0:02:37]}  d5 {[%clk 0:02:23]} 14. e5 {[%clk 0:02:27]}  Ne4 {[%clk 0:02:23]} 15. Qe3 {[%clk 0:02:27]}  Na5 {[%clk 0:02:01]} 16. Kb1 {[%clk 0:02:13]}  Bb7 {[%clk 0:01:55]} 17. Nd2 {[%clk 0:01:47]}  Nxd2+ {[%clk 0:01:50]} 18. Qxd2 {[%clk 0:01:45]}  Nc4 {[%clk 0:01:42]} 19. Qxb4 {[%clk 0:01:35]}  Rb8 {[%clk 0:01:20]} 20. Bxe7 {[%clk 0:01:28]}  Qd7 {[%clk 0:01:18]} 21. b3 {[%clk 0:01:09]}  Bc6 {[%clk 0:01:04]} 22. Bxf8 {[%clk 0:01:09]}  Rxb4 {[%clk 0:00:46]} 23. Bxb4 {[%clk 0:01:08]}  Nb6 {[%clk 0:00:40]} 24. f4 {[%clk 0:00:54]}  Bb5 {[%clk 0:00:40]} 25. Bc5 {[%clk 0:00:51]}  Bxd3 {[%clk 0:00:39]} 26. Rxd3 {[%clk 0:00:51]}  Qb5 {[%clk 0:00:39]} 27. Nc3 {[%clk 0:00:43]}  Qa5 {[%clk 0:00:38]} 28. a4 {[%clk 0:00:38]}  Nxa4 {[%clk 0:00:12]} 29. Nxa4 {[%clk 0:00:36]}  c6 {[%clk 0:00:12]} 30. f5 {[%clk 0:00:35]}  Bf8 {[%clk 0:00:12]} 31. fxg6 {[%clk 0:00:32]}  fxg6 {[%clk 0:00:11]} 32. Rf1 {[%clk 0:00:32]}  Bxc5 {[%clk 0:00:11]} 33. Nxc5 {[%clk 0:00:32]}  Qb4 {[%clk 0:00:07]} 34. Kb2 {[%clk 0:00:30]}  a5 {[%clk 0:00:07]} 35. c3 {[%clk 0:00:30]}  Qb5 {[%clk 0:00:07]} 36. Rdf3 {[%clk 0:00:20]}  a4 {[%clk 0:00:07]} 37. Rf8+ {[%clk 0:00:19]}  Kg7 {[%clk 0:00:07]} 38. R1f7# {[%clk 0:00:19]} 1-0


[Site "https://www.chess.com"]

[Event "Titled Tuesday Blitz July 25 Early 2023"]
[White "Ncatt"]
[Black "Turzo, Attila"]
[BlackFideId "704954"]
[WhiteElo "2340"]
[BlackElo "2504"]
[Result "1/2-1/2"]
[Round "3"]
[TimeControl "180+2"]
[Date "2023.07.25"]
[WhiteClock "0:00:51"]
[BlackClock "0:00:05"]
[Board "185"]

1. e4 {[%clk 0:02:59]}  d6 {[%clk 0:02:59]} 2. d4 {[%clk 0:02:58]}  Nf6 {[%clk 0:02:59]} 3. Nc3 {[%clk 0:02:59]}  g6 {[%clk 0:03:00]} 4. Nf3 {[%clk 0:02:59]}  Bg7 {[%clk 0:03:00]} 5. h3 {[%clk 0:02:59]}  O-O {[%clk 0:02:54]} 6. Be3 {[%clk 0:02:59]}  c6 {[%clk 0:02:46]} 7. Bd3 {[%clk 0:02:58]}  b5 {[%clk 0:02:44]} 8. Ne2 {[%clk 0:02:57]}  Nbd7 {[%clk 0:02:38]} 9. Ng3 {[%clk 0:02:53]}  e5 {[%clk 0:02:29]} 10. c3 {[%clk 0:02:53]}  Re8 {[%clk 0:02:28]} 11. O-O {[%clk 0:02:50]}  Bb7 {[%clk 0:02:28]} 12. Qd2 {[%clk 0:02:50]}  a6 {[%clk 0:02:26]} 13. Rae1 {[%clk 0:02:50]}  Qc7 {[%clk 0:02:24]} 14. Nh2 {[%clk 0:02:44]}  d5 {[%clk 0:02:19]} 15. exd5 {[%clk 0:02:36]}  Nxd5 {[%clk 0:02:15]} 16. Bh6 {[%clk 0:02:36]}  Bh8 {[%clk 0:02:03]} 17. Ng4 {[%clk 0:02:33]}  f5 {[%clk 0:01:55]} 18. Nxe5 {[%clk 0:02:32]}  Nxe5 {[%clk 0:01:55]} 19. dxe5 {[%clk 0:02:32]}  Bxe5 {[%clk 0:01:55]} 20. Qg5 {[%clk 0:02:21]}  Bf4 {[%clk 0:01:36]} 21. Qh4 {[%clk 0:02:21]}  Bxh6 {[%clk 0:01:35]} 22. Qxh6 {[%clk 0:02:20]}  Qf4 {[%clk 0:01:36]} 23. Qxf4 {[%clk 0:02:18]}  Nxf4 {[%clk 0:01:37]} 24. Bc2 {[%clk 0:02:16]}  c5 {[%clk 0:01:36]} 25. f3 {[%clk 0:02:16]}  c4 {[%clk 0:01:25]} 26. Kf2 {[%clk 0:02:12]}  Kf7 {[%clk 0:01:19]} 27. Ne2 {[%clk 0:02:10]}  Ne6 {[%clk 0:01:00]} 28. Rd1 {[%clk 0:02:08]}  Rad8 {[%clk 0:00:59]} 29. a4 {[%clk 0:02:07]}  Kf6 {[%clk 0:00:54]} 30. g3 {[%clk 0:02:06]}  g5 {[%clk 0:00:51]} 31. axb5 {[%clk 0:02:03]}  axb5 {[%clk 0:00:51]} 32. Rfe1 {[%clk 0:02:01]}  h6 {[%clk 0:00:48]} 33. f4 {[%clk 0:01:58]}  Bc6 {[%clk 0:00:36]} 34. h4 {[%clk 0:01:57]}  g4 {[%clk 0:00:25]} 35. Nd4 {[%clk 0:01:43]}  Nxd4 {[%clk 0:00:24]} 36. Rxe8 {[%clk 0:01:37]}  Bxe8 {[%clk 0:00:20]} 37. Rxd4 {[%clk 0:01:37]}  Rxd4 {[%clk 0:00:20]} 38. cxd4 {[%clk 0:01:37]}  Bc6 {[%clk 0:00:20]} 39. Ke3 {[%clk 0:01:36]}  Bd5 {[%clk 0:00:17]} 40. Kd2 {[%clk 0:01:35]}  b4 {[%clk 0:00:17]} 41. Ke3 {[%clk 0:01:33]}  Ke6 {[%clk 0:00:15]} 42. Bb1 {[%clk 0:01:33]}  Kf6 {[%clk 0:00:11]} 43. Bc2 {[%clk 0:01:33]}  Be4 {[%clk 0:00:08]} 44. Bxe4 {[%clk 0:01:29]}  fxe4 {[%clk 0:00:09]} 45. d5 {[%clk 0:00:59]}  c3 {[%clk 0:00:07]} 46. b3 {[%clk 0:00:53]}  Kf5 {[%clk 0:00:06]} 47. Ke2 {[%clk 0:00:51]}  Kf6 {[%clk 0:00:04]} 48. h5 {[%clk 0:00:51]}  Kf5 {[%clk 0:00:04]} 49. Ke3 {[%clk 0:00:51]}  Kf6 {[%clk 0:00:04]} 50. Ke2 {[%clk 0:00:51]}  Kf5 {[%clk 0:00:04]} 51. Ke3 {[%clk 0:00:51]}  Kf6 {[%clk 0:00:05]} 52. Ke2 {[%clk 0:00:51]} 1/2-1/2


[Site "https://www.chess.com"]

[Event "Titled Tuesday Blitz July 25 Early 2023"]
[White "Fernandez Siles, Luis"]
[Black "Akylbek2021"]
[WhiteFideId "2209420"]
[WhiteElo "2294"]
[BlackElo "2466"]
[Result "1-0"]
[Round "3"]
[TimeControl "180+2"]
[Date "2023.07.25"]
[WhiteClock "0:00:51"]
[BlackClock "0:00:16"]
[Board "190"]

1. e4 {[%clk 0:03:00]}  e5 {[%clk 0:02:58]} 2. Nf3 {[%clk 0:03:00]}  Nc6 {[%clk 0:02:57]} 3. Nc3 {[%clk 0:02:59]}  Nf6 {[%clk 0:02:56]} 4. Bc4 {[%clk 0:02:59]}  Bc5 {[%clk 0:02:53]} 5. d3 {[%clk 0:02:58]}  d6 {[%clk 0:02:52]} 6. h3 {[%clk 0:02:57]}  h6 {[%clk 0:02:53]} 7. a4 {[%clk 0:02:56]}  a6 {[%clk 0:02:53]} 8. Be3 {[%clk 0:02:52]}  Bxe3 {[%clk 0:02:47]} 9. fxe3 {[%clk 0:02:53]}  Be6 {[%clk 0:02:39]} 10. b3 {[%clk 0:02:47]}  Bxc4 {[%clk 0:02:35]} 11. bxc4 {[%clk 0:02:47]}  O-O {[%clk 0:02:34]} 12. O-O {[%clk 0:02:42]}  Re8 {[%clk 0:02:18]} 13. Nd5 {[%clk 0:02:40]}  Nxd5 {[%clk 0:02:07]} 14. cxd5 {[%clk 0:02:41]}  Ne7 {[%clk 0:02:02]} 15. c4 {[%clk 0:02:34]}  f5 {[%clk 0:01:54]} 16. Qb3 {[%clk 0:02:13]}  fxe4 {[%clk 0:01:48]} 17. dxe4 {[%clk 0:02:12]}  b6 {[%clk 0:01:47]} 18. a5 {[%clk 0:02:12]}  Rf8 {[%clk 0:01:41]} 19. axb6 {[%clk 0:02:03]}  cxb6 {[%clk 0:01:42]} 20. Rfb1 {[%clk 0:02:03]}  Nc8 {[%clk 0:01:39]} 21. c5 {[%clk 0:01:52]}  bxc5 {[%clk 0:01:17]} 22. Qb7 {[%clk 0:01:35]}  Ra7 {[%clk 0:01:17]} 23. Qc6 {[%clk 0:01:36]}  Ne7 {[%clk 0:01:04]} 24. Qb6 {[%clk 0:01:29]}  Nc8 {[%clk 0:00:36]} 25. Qxd8 {[%clk 0:01:20]}  Rxd8 {[%clk 0:00:37]} 26. Rb8 {[%clk 0:01:18]}  Kf7 {[%clk 0:00:32]} 27. Nd2 {[%clk 0:01:18]}  Ke7 {[%clk 0:00:30]} 28. Nc4 {[%clk 0:01:17]}  Kd7 {[%clk 0:00:25]} 29. Rab1 {[%clk 0:01:01]}  Kc7 {[%clk 0:00:25]} 30. Na5 {[%clk 0:00:55]}  Ne7 {[%clk 0:00:22]} 31. R8b7+ {[%clk 0:00:54]}  Rxb7 {[%clk 0:00:19]} 32. Rxb7+ {[%clk 0:00:55]}  Kc8 {[%clk 0:00:19]} 33. Rxe7 {[%clk 0:00:54]}  g5 {[%clk 0:00:19]} 34. Ra7 {[%clk 0:00:52]}  Rd7 {[%clk 0:00:16]} 35. Rxa6 {[%clk 0:00:51]} 1-0


[Site "https://www.chess.com"]